fUSD/lending_fUSD_20260329
["ID","MTS","AMOUNT","RATE_DAILY","PERIOD"]
[419015590,1774755041182,-500.0,0.00013698,2]
[419015591,1774755041192,-500.0,0.00013698,2]
[419015592,1774755041201,-500.0,0.00013698,2]
[419015593,1774755041211,-500.0,0.00013698,2]
[419015594,1774755041221,-500.0,0.00013698,2]
[419015595,1774755041230,-500.0,0.00013698,2]
[419015596,1774755041240,-629.51176629,0.00013698,2]
[419015597,1774755041249,-500.0,0.00013698,2]
[419015598,1774755041259,-500.0,0.00013698,2]
[419015599,1774755041268,-500.0,0.00013698,2]
[419015600,1774755041277,-500.0,0.00013698,2]
[419015601,1774755041287,-500.0,0.00013698,2]
[419015602,1774755041297,-500.0,0.00013698,2]
[419015603,1774755041307,-500.0,0.00013698,2]
[419015604,1774755041402,-500.0,0.00013698,2]
[419015605,1774755041412,-500.0,0.00013698,2]
[419015606,1774755041421,-500.0,0.00013698,2]
[419015607,1774755041430,-500.0,0.00013698,2]
[419015608,1774755041439,-500.0,0.00013698,2]
[419015609,1774755041448,-500.0,0.00013698,2]
[419015610,1774755041456,-500.0,0.00013698,2]
[419015611,1774755041466,-150.16805847,0.00013698,2]
[419015612,1774755041475,-500.0,0.00013698,2]
[419015613,1774755041484,-500.0,0.00013698,2]
[419015614,1774755041493,-500.0,0.00013698,2]
[419015615,1774755041502,-500.0,0.00013698,2]
[419015616,1774755041511,-500.0,0.00013698,2]
[419015617,1774755041520,-500.0,0.00013698,2]
[419015618,1774755041529,-500.0,0.00013698,2]
[419015619,1774755041539,-500.0,0.00013698,2]
[419015620,1774755041548,-514.11510476,0.00013698,2]
[419015621,1774755041557,-500.0,0.00013698,2]
[419015622,1774755041566,-500.0,0.00013698,2]
[419015623,1774755041576,-500.0,0.00013698,2]
[419015624,1774755041586,-500.0,0.00013698,2]
[419015625,1774755041596,-500.0,0.00013698,2]
[419015626,1774755041605,-179.21652627,0.00013698,2]
[419015627,1774755041614,-500.0,0.00013698,2]
[419015628,1774755041623,-500.0,0.00013698,2]
[419015629,1774755041633,-500.0,0.00013698,2]
[419015630,1774755041645,-500.0,0.00013698,2]
[419015631,1774755041655,-563.09074423,0.00013698,2]
[419015632,1774755041664,-500.0,0.00013698,2]
[419015633,1774755041672,-500.0,0.00013698,2]
[419015634,1774755041682,-500.0,0.00013698,2]
[419015635,1774755041691,-505.93653105,0.00013698,2]
[419015636,1774755041700,-511.61768064,0.00013698,2]
[419015637,1774755041710,-500.0,0.00013698,2]
[419015638,1774755041719,-500.0,0.00013698,2]
[419015639,1774755041729,-500.0,0.00013698,2]
[419015640,1774755041738,-500.0,0.00013698,2]
[419015641,1774755041747,-505.30350392,0.00013698,2]
[419015642,1774755041757,-500.0,0.00013698,2]
[419015643,1774755041766,-361.97778999,0.00013698,2]
[419015644,1774755041775,-500.0,0.00013698,2]
[419015645,1774755041784,-500.0,0.00013698,2]
[419015646,1774755041794,-500.0,0.00013698,2]
[419015647,1774755041803,-500.0,0.00013698,2]
[419015648,1774755041812,-500.0,0.00013698,2]
[419015649,1774755041821,-500.0,0.00013698,2]
[419015650,1774755041830,-500.0,0.00013698,2]
[419015651,1774755041840,-500.0,0.00013698,2]
[419015652,1774755041849,-500.0,0.00013698,2]
[419015653,1774755041858,-500.0,0.00013698,2]
[419015654,1774755041867,-500.0,0.00013698,2]
[419015655,1774755041876,-500.0,0.00013698,2]
[419015656,1774755041886,-500.0,0.00013698,2]
[419015657,1774755041895,-500.0,0.00013698,2]
[419015658,1774755041905,-500.0,0.00013698,2]
[419015659,1774755041914,-500.0,0.00013698,2]
[419015660,1774755041924,-500.0,0.00013698,2]
[419015661,1774755041934,-500.0,0.00013698,2]
[419015662,1774755041943,-631.42723728,0.00013698,2]
[419015663,1774755041952,-150.0,0.00013699,2]
[419015664,1774755041962,-150.0,0.00013699,2]
[419015665,1774755041971,-150.0,0.00013699,2]
[419015666,1774755041981,-150.0,0.00013699,2]
[419015667,1774755041990,-150.0,0.00013699,2]
[419015668,1774755041999,-371.26,0.00013699,2]
[419015669,1774755042010,-500.0,0.00013699,2]
[419015670,1774755042021,-165.20736909,0.00013699,2]
[419015671,1774755042031,-500.0,0.00013699,2]
[419015672,1774755042042,-500.61251814,0.00013699,2]
[419015673,1774755042052,-500.0,0.00013699,2]
[419015674,1774755042061,-500.0,0.00013699,2]
[419015675,1774755042071,-500.0,0.00013699,2]
[419015676,1774755042080,-500.0,0.00013699,2]
[419015677,1774755042089,-500.0,0.00013699,2]
[419015678,1774755042098,-500.0,0.00013699,2]
[419015679,1774755042108,-501.2412305,0.00013699,2]
[419015680,1774755042117,-161.75757125,0.00013699,2]
[419015681,1774755042126,-303.4827321,0.00013699,2]
[419015682,1774755042136,-500.0,0.00013699,2]
[419015683,1774755042145,-500.0,0.00013699,2]
[419015684,1774755042155,-500.0,0.00013699,2]
[419015685,1774755042164,-502.54797101,0.00013699,2]
[419015686,1774755042174,-500.0,0.00013699,2]
[419015687,1774755042183,-500.0,0.00013699,2]
[419015688,1774755042192,-500.0,0.00013699,2]
[419015689,1774755042202,-500.0,0.00013699,2]
[419015690,1774755042217,-160.27279954,0.00013699,2]
[419015691,1774755042232,-518.51040499,0.00013699,2]
[419015692,1774755042247,-337.48789903,0.00013699,2]
[419015693,1774755042258,-500.0,0.00013699,2]
[419015694,1774755042272,-163.45026092,0.00013699,2]
[419015695,1774755042285,-500.0,0.00013699,2]
[419015696,1774755042300,-164.64289673,0.00013699,2]
[419015697,1774755042315,-500.0,0.00013699,2]
[419015698,1774755042327,-500.0,0.00013699,2]
[419015699,1774755042342,-500.0,0.00013699,2]
[419015700,1774755042355,-501.46955268,0.00013699,2]
[419015701,1774755042369,-500.0,0.00013699,2]
[419015702,1774755042382,-500.0,0.00013699,2]
[419015703,1774755042394,-500.79800767,0.00013699,2]
[419015704,1774755042406,-500.69436483,0.00013699,2]
[419015705,1774755042417,-500.0,0.00013699,2]
[419015706,1774755042431,-166.38309596,0.00013699,2]
[419015707,1774755042444,-500.0,0.00013699,2]
[419015708,1774755042459,-500.48512281,0.00013699,2]
[419015709,1774755042472,-500.11753077,0.00013699,2]
[419015710,1774755042485,-500.0,0.00013699,2]
[419015711,1774755042500,-500.0,0.00013699,2]
[419015712,1774755042515,-1077.56,0.000137,2]
[419015713,1774755042529,-445.31,0.000137,2]
[419015714,1774755042540,-150.0,0.000137,2]
[419015715,1774755042552,-217.8882415,0.000137,2]
[419015716,1774755042563,-648.6,0.000137,2]
[419015717,1774755042578,-7380.22,0.000137,2]
[419015718,1774755042589,-744.75,0.000137,2]
[419015719,1774755042601,-28175.4484111,0.00013761,2]
[419015720,1774755042615,-150.0,0.00013832,2]
[419015721,1774755042628,-272.177711,0.00013833,2]
[419015722,1774755042640,-200.0,0.00013882,2]
[419015723,1774755042653,-2510.62550353,0.0001396,2]
[419015724,1774755042664,-250.0,0.0001397,2]
[419015725,1774755042675,-150.0,0.00013973,2]
[419015726,1774755042687,-150.0,0.00013973,2]
[419015727,1774755042699,-150.0,0.00013973,2]
[419015729,1774755042711,-150.0,0.00013973,2]
[419015731,1774755042722,-150.0,0.00013973,2]
[419015732,1774755042734,-3292.0,0.00013974,2]
[419015733,1774755042745,-736.0,0.00013976,2]
[419015734,1774755042756,-151.2832,0.00014,2]
[419015735,1774755042768,-513.0,0.00014,2]
[419015736,1774755042779,-11733.4473581,0.00014006,2]
[419015737,1774755042792,-4731.0,0.00014031,2]
[419015738,1774755042803,-406.081874,0.00014037,7]
[419015739,1774755042816,-263.83419,0.00014037,7]
[419015740,1774755042829,-500.0,0.00014077,2]
[419015741,1774755042840,-582.74412177,0.000141,2]
[419015742,1774755042851,-28175.4484111,0.00014228,2]
[419015743,1774755042863,-150.0,0.00014247,2]
[419015744,1774755042875,-150.0,0.00014247,2]
[419015745,1774755042887,-150.0,0.00014247,2]
[419015746,1774755042899,-1000.0,0.00014247,2]
[419015747,1774755042911,-1000.0,0.00014247,2]
[419015748,1774755042923,-1000.0,0.00014247,2]
[419015749,1774755042935,-1000.0,0.00014247,2]
[419015750,1774755042947,-875.52475925,0.00014247,2]
[419015751,1774755042958,-1000.0,0.00014247,2]
[419015752,1774755042971,-1000.0,0.00014247,2]
[419015754,1774755042983,-1000.0,0.00014247,2]
[419015755,1774755042995,-1001.92036949,0.00014247,2]
[419015756,1774755043007,-1000.0,0.00014247,2]
[419015757,1774755043019,-679.35577738,0.00014247,2]
[419015758,1774755043031,-1000.0,0.00014247,2]
[419015759,1774755043044,-502.07720266,0.00014247,2]
[419015760,1774755043056,-1000.0,0.00014247,2]
[419015761,1774755043068,-1000.0,0.00014247,2]
[419015762,1774755043082,-1000.0,0.00014247,2]
[419015764,1774755043094,-501.26333658,0.00014247,2]
[419015765,1774755043108,-374.86231475,0.00014247,2]
[419015766,1774755043119,-1000.0,0.00014247,2]
[419015767,1774755043132,-1000.0,0.00014247,2]
[419015768,1774755043145,-1000.0,0.00014247,2]
[419015769,1774755043159,-501.59458687,0.00014247,2]
[419015770,1774755043171,-1000.0,0.00014247,2]
[419015773,1774755043183,-1000.0,0.00014247,2]
[419015775,1774755043196,-1003.11755698,0.00014247,2]
[419015777,1774755043210,-1003.48505181,0.00014247,2]
[419015780,1774755043222,-150.0,0.00014267,2]
[419015782,1774755043235,-503.0,0.00014356,2]
[419015784,1774755043248,-154.53434814,0.00014371,2]
[419015785,1774755043261,-200.0,0.0001443,2]
[419015786,1774755043274,-2040.08,0.0001457,2]
[419015787,1774755043286,-200.0,0.0001457,2]
[419015788,1774755043299,-248.6,0.0001457,2]
[419015789,1774755043309,-14781.63,0.0001457,2]
[419015790,1774755043470,-28175.4484111,0.00014695,2]
[419015791,1774755043483,-1008.27174746,0.00014795,2]
[419015792,1774755043493,-898.88065305,0.00014795,2]
[419015793,1774755043504,-831.30897363,0.00014795,2]
[419015794,1774755043515,-1042.69333386,0.00014795,2]
[419015795,1774755043525,-1500.0,0.00014795,2]
[419015796,1774755043536,-1500.0,0.00014795,2]
[419015797,1774755043546,-1500.0,0.00014795,2]
[419015798,1774755043556,-910.63975449,0.00014795,2]
[419015799,1774755043566,-1500.0,0.00014795,2]
[419015800,1774755043576,-1500.0,0.00014795,2]
[419015801,1774755043586,-1500.0,0.00014795,2]
[419015802,1774755043596,-684.37970889,0.00014795,2]
[419015803,1774755043606,-1577.83433324,0.00014795,2]
[419015804,1774755043616,-501.43625985,0.00014795,2]
[419015805,1774755043626,-502.74977469,0.00014795,2]
[419015806,1774755043636,-1500.0,0.00014795,2]
[419015807,1774755043646,-580.42962611,0.00014795,2]
[419015808,1774755043656,-160.0,0.00014805,2]
[419015809,1774755043666,-959.8630956,0.00014805,2]
[419015810,1774755043676,-160.0,0.00014805,2]
[419015811,1774755043686,-205.01,0.00014867,2]
[419015812,1774755043697,-1600.0,0.00014927,2]
[419015813,1774755043707,-200.0,0.00014978,2]
[419015814,1774755043718,-500.0,0.00015,2]
[419015815,1774755043729,-500.0,0.00015,2]
[419015816,1774755043739,-500.0,0.00015,2]
[419015817,1774755043748,-500.0,0.00015,2]
[419015818,1774755043758,-500.0,0.00015,2]
[419015819,1774755043768,-500.0,0.00015,2]
[419015820,1774755043778,-500.0,0.00015,2]
[419015821,1774755043788,-500.0,0.00015,2]
[419015822,1774755043798,-500.0,0.00015,2]
[419015823,1774755043807,-500.0,0.00015,2]
[419015824,1774755043818,-500.0,0.00015,2]
[419015825,1774755043827,-513.9,0.00015,2]
[419015826,1774755043836,-500.0,0.00015,2]
[419015827,1774755043846,-500.0,0.00015,2]
[419015828,1774755043856,-500.0,0.00015,2]
[419015829,1774755043866,-500.0,0.00015,2]
[419015830,1774755043876,-500.0,0.00015,2]
[419015831,1774755043886,-500.0,0.00015,2]
[419015832,1774755043896,-500.0,0.00015,2]
[419015833,1774755043905,-500.0,0.00015,2]
[419015834,1774755043915,-500.0,0.00015,2]
[419015835,1774755043924,-500.0,0.00015,2]
[419015836,1774755043934,-500.0,0.00015,2]
[419015837,1774755043943,-500.0,0.00015,2]
[419015838,1774755043953,-500.0,0.00015,2]
[419015839,1774755043962,-500.0,0.00015,2]
[419015840,1774755043972,-500.0,0.00015,2]
[419015841,1774755043982,-500.0,0.00015,2]
[419015842,1774755043992,-530.72,0.00015,2]
[419015843,1774755044002,-582.74412177,0.00015,2]
[419015844,1774755044011,-300.0,0.00015,2]
[419015845,1774755044021,-9552.16786547,0.00015199,2]
[419015846,1774755044031,-500.0,0.00015199,2]
[419015847,1774755044040,-151.0,0.00015199,2]
[419015849,1774755044050,-187.28708856,0.00015199,2]
[419015850,1774755044059,-262.90206542,0.00015199,2]
[419015853,1774755044069,-5664.01506335,0.000152,2]
[419015855,1774755044078,-187.033494,0.000152,2]
[419015857,1774755044087,-10000.0,0.00015205,2]
[419015859,1774755044097,-9905.5980765,0.00015254,2]
[419015860,1774755044107,-500.0,0.00015254,2]
[419015861,1774755044118,-151.0,0.00015254,2]
[419015862,1774755044128,-272.62944185,0.00015254,2]
[419015863,1774755044138,-10272.10520533,0.00015309,2]
[419015864,1774755044147,-500.0,0.00015309,2]
[419015865,1774755044157,-151.0,0.00015309,2]
[419015866,1774755044166,-282.71673119,0.00015309,2]
[419015867,1774755044176,-1252.0,0.00015331,2]
[419015868,1774755044185,-1083.85118063,0.00015342,2]
[419015870,1774755044196,-1716.73514063,0.00015342,2]
[419015873,1774755044205,-2000.0,0.00015342,2]
[419015875,1774755044215,-507.9229115,0.00015342,2]
[419015876,1774755044224,-1500.0,0.00015342,2]
[419015877,1774755044234,-466.69355566,0.00015342,2]
[419015878,1774755044243,-2000.0,0.00015342,2]
[419015879,1774755044253,-10652.17309792,0.00015364,2]
[419015880,1774755044263,-500.0,0.00015364,2]
[419015881,1774755044272,-151.0,0.00015364,2]
[419015882,1774755044282,-293.17725025,0.00015364,2]
[419015883,1774755044291,-4609.0,0.00015372,2]
[419015884,1774755044301,-248.6,0.00015379,2]
[419015885,1774755044310,-2000.0,0.000154,2]
[419015886,1774755044320,-42679.9001324,0.00015416,2]
[419015887,1774755044330,-11046.30350255,0.00015419,2]
[419015888,1774755044340,-500.0,0.00015419,2]
[419015889,1774755044350,-151.0,0.00015419,2]
[419015890,1774755044360,-304.02480851,0.00015419,2]
[419015891,1774755044369,-1543.56,0.00015445,2]
[419015892,1774755044378,-11455.01673214,0.00015474,2]
[419015893,1774755044388,-500.0,0.00015474,2]
[419015894,1774755044398,-151.0,0.00015474,2]
[419015895,1774755044407,-335.87964325,0.00015474,2]
[419015896,1774755044417,-406.284162,0.00015509,7]
[419015897,1774755044427,-1000.0,0.00015512,2]
[419015898,1774755044436,-1000.0,0.00015512,2]
[419015899,1774755044446,-1000.0,0.00015512,2]
[419015900,1774755044455,-1000.0,0.00015512,2]
[419015901,1774755044465,-1000.0,0.00015512,2]
[419015902,1774755044475,-1000.0,0.00015512,2]
[419015903,1774755044485,-1000.0,0.00015512,2]
[419015904,1774755044494,-1000.0,0.00015512,2]
[419015905,1774755044504,-1000.0,0.00015512,2]
[419015906,1774755044514,-1000.0,0.00015512,2]
[419015907,1774755044523,-1000.0,0.00015512,2]
[419015908,1774755044533,-1000.0,0.00015512,2]
[419015909,1774755044543,-1000.0,0.00015512,2]
[419015910,1774755044552,-766.149,0.00015512,2]
[419015911,1774755044563,-284.20491109,0.00015526,2]
[419015912,1774755044572,-11878.85235123,0.00015529,2]
[419015913,1774755044582,-500.0,0.00015529,2]
[419015914,1774755044592,-151.0,0.00015529,2]
[419015915,1774755044602,-5888.0,0.00015537,2]
[419015916,1774755044612,-154.53434814,0.00015569,2]
[419015917,1774755044623,-2601.6412518,0.00015584,2]
[419015918,1774755044633,-500.0,0.00015584,2]
[419015919,1774755044644,-151.0,0.00015584,2]
[419015920,1774755044653,-151.929,0.000156,2]
[419015921,1774755044662,-2000.0,0.000156,2]
[419015922,1774755044673,-165.53711505,0.0001562,7]
[419015923,1774755044682,-5888.0,0.00015622,2]
[419015924,1774755044691,-500.0,0.00015639,2]
[419015925,1774755044702,-151.0,0.00015639,2]
[419015926,1774755044713,-2587.82372052,0.0001568,2]
[419015927,1774755044723,-350.0,0.00015683,2]
[419015928,1774755044734,-500.0,0.00015694,2]
[419015929,1774755044744,-292.24092278,0.00015694,2]
[419015930,1774755044754,-3500.0,0.000157,5]
[419015931,1774755044763,-200.0,0.000157,5]
[419015932,1774755044772,-704.0,0.0001572,2]
[419015933,1774755044782,-704.0,0.0001572,2]
[419015934,1774755044791,-704.0,0.0001572,2]
[419015935,1774755044800,-704.0,0.0001572,2]
[419015936,1774755044810,-704.0,0.0001572,2]
[419015937,1774755044820,-704.0,0.0001572,2]
[419015938,1774755044831,-704.0,0.0001572,2]
[419015939,1774755044841,-704.0,0.0001572,2]
[419015940,1774755044850,-704.0,0.0001572,2]
[419015941,1774755044860,-704.0,0.0001572,2]
[419015942,1774755044869,-704.0,0.0001572,2]
[419015943,1774755044879,-704.0,0.0001572,2]
[419015944,1774755044888,-704.0,0.0001572,2]
[419015945,1774755044897,-704.0,0.0001572,2]
[419015946,1774755044906,-704.0,0.0001572,2]
[419015947,1774755044915,-704.0,0.0001572,2]
[419015948,1774755044924,-704.0,0.0001572,2]
[419015949,1774755044933,-704.0,0.0001572,2]
[419015950,1774755044943,-704.0,0.0001572,2]
[419015951,1774755044951,-704.0,0.0001572,2]
[419015952,1774755044962,-704.0,0.0001572,2]
[419015953,1774755044971,-704.0,0.0001572,2]
[419015954,1774755044981,-704.0,0.0001572,2]
[419015955,1774755044990,-707.6946264,0.0001572,2]
[419015956,1774755045000,-500.0,0.00015722,2]
[419015957,1774755045010,-500.0,0.00015723,2]
[419015958,1774755045020,-500.0,0.00015723,2]
[419015959,1774755045029,-500.0,0.00015723,2]
[419015960,1774755045038,-500.0,0.00015723,2]
[419015961,1774755045048,-500.0,0.00015723,2]
[419015962,1774755045057,-500.0,0.00015723,2]
[419015963,1774755045067,-500.0,0.00015723,2]
[419015964,1774755045076,-500.0,0.00015723,2]
[419015965,1774755045085,-500.0,0.00015723,2]
[419015966,1774755045095,-500.0,0.00015723,2]
[419015967,1774755045104,-500.0,0.00015723,2]
[419015968,1774755045113,-500.0,0.00015723,2]
[419015969,1774755045123,-500.0,0.00015723,2]
[419015970,1774755045132,-500.0,0.00015723,2]
[419015971,1774755045141,-152.53186786,0.00015723,2]
[419015972,1774755045152,-500.0,0.00015723,2]
[419015973,1774755045161,-500.0,0.00015723,2]
[419015974,1774755045170,-500.0,0.00015723,2]
[419015975,1774755045180,-500.0,0.00015723,2]
[419015976,1774755045189,-500.0,0.00015723,2]
[419015977,1774755045199,-500.0,0.00015723,2]
[419015978,1774755045209,-500.0,0.00015723,2]
[419015979,1774755045219,-500.0,0.00015723,2]
[419015980,1774755045229,-500.0,0.00015723,2]
[419015981,1774755045239,-500.0,0.00015723,2]
[419015982,1774755045248,-500.0,0.00015723,2]
[419015983,1774755045258,-500.0,0.00015723,2]
[419015984,1774755045267,-500.0,0.00015723,2]
[419015985,1774755045277,-500.0,0.00015723,2]
[419015986,1774755045287,-500.0,0.00015723,2]
[419015987,1774755045297,-500.0,0.00015723,2]
[419015988,1774755045307,-500.0,0.00015723,2]
[419015989,1774755045316,-500.0,0.00015723,2]
[419015990,1774755045326,-500.0,0.00015723,2]
[419015991,1774755045335,-500.0,0.00015723,2]
[419015992,1774755045344,-500.0,0.00015723,2]
[419015993,1774755045354,-500.0,0.00015723,2]
[419015994,1774755045364,-500.0,0.00015723,2]
[419015995,1774755045373,-500.0,0.00015723,2]
[419015996,1774755045384,-500.0,0.00015723,2]
[419015997,1774755045394,-500.0,0.00015723,2]
[419015998,1774755045404,-500.0,0.00015723,2]
[419015999,1774755045413,-500.0,0.00015723,2]
[419016000,1774755045423,-500.0,0.00015723,2]
[419016001,1774755045433,-500.0,0.00015723,2]
[419016002,1774755045442,-500.0,0.00015723,2]
[419016003,1774755045452,-580.96645017,0.00015723,2]
[419016004,1774755045461,-500.0,0.00015723,2]
[419016005,1774755045471,-500.0,0.00015723,2]
[419016006,1774755045480,-508.56311436,0.00015723,2]
[419016007,1774755045490,-500.0,0.00015723,2]
[419016008,1774755045499,-500.0,0.00015723,2]
[419016009,1774755045509,-500.0,0.00015723,2]
[419016010,1774755045518,-483.29461098,0.00015723,2]
[419016011,1774755045528,-500.0,0.00015723,2]
[419016012,1774755045537,-503.95632491,0.00015723,2]
[419016013,1774755045547,-474.21241056,0.00015723,2]
[419016014,1774755045556,-490.0,0.00015723,2]
[419016015,1774755045565,-490.0,0.00015723,2]
[419016016,1774755045575,-490.0,0.00015723,2]
[419016017,1774755045584,-490.0,0.00015723,2]
[419016018,1774755045594,-490.0,0.00015723,2]
[419016019,1774755045604,-490.0,0.00015723,2]
[419016020,1774755045614,-490.0,0.00015723,2]
[419016021,1774755045624,-490.0,0.00015723,2]
[419016022,1774755045634,-490.0,0.00015723,2]
[419016023,1774755045643,-490.0,0.00015723,2]
[419016024,1774755045652,-490.0,0.00015723,2]
[419016025,1774755045662,-490.0,0.00015723,2]
[419016026,1774755045671,-490.0,0.00015723,2]
[419016027,1774755045681,-490.0,0.00015723,2]
[419016028,1774755045691,-490.0,0.00015723,2]
[419016029,1774755045700,-490.0,0.00015723,2]
[419016030,1774755045710,-490.0,0.00015723,2]
[419016031,1774755045720,-490.0,0.00015723,2]
[419016032,1774755045730,-490.0,0.00015723,2]
[419016033,1774755045740,-490.0,0.00015723,2]
[419016035,1774755045750,-490.0,0.00015723,2]
[419016037,1774755045759,-490.0,0.00015723,2]
[419016038,1774755045858,-490.0,0.00015723,2]
[419016039,1774755045868,-492.58098477,0.00015723,2]
[419016040,1774755045877,-156.35128686,0.00015723,2]
[419016041,1774755045886,-500.0,0.00015723,2]
[419016042,1774755045896,-500.0,0.00015723,2]
[419016043,1774755045905,-500.0,0.00015723,2]
[419016044,1774755045915,-500.0,0.00015723,2]
[419016045,1774755045924,-500.0,0.00015723,2]
[419016046,1774755045933,-500.0,0.00015723,2]
[419016047,1774755045942,-327.14015113,0.00015723,2]
[419016048,1774755045951,-500.0,0.00015723,2]
[419016049,1774755045960,-500.0,0.00015723,2]
[419016050,1774755045970,-500.0,0.00015723,2]
[419016051,1774755045979,-500.0,0.00015723,2]
[419016052,1774755045988,-500.0,0.00015723,2]
[419016053,1774755045998,-182.16957206,0.00015723,2]
[419016054,1774755046007,-150.0,0.00015723,2]
[419016055,1774755046016,-500.0,0.00015723,2]
[419016056,1774755046025,-500.0,0.00015723,2]
[419016057,1774755046036,-500.0,0.00015723,2]
[419016058,1774755046046,-154.31995128,0.00015723,2]
[419016059,1774755046056,-500.0,0.00015723,2]
[419016060,1774755046065,-390.7556468,0.00015723,2]
[419016061,1774755046074,-500.0,0.00015723,2]
[419016062,1774755046084,-150.0,0.00015723,2]
[419016063,1774755046093,-500.0,0.00015723,2]
[419016064,1774755046102,-206.13980161,0.00015723,2]
[419016065,1774755046111,-216.9963302,0.00015723,2]
[419016066,1774755046120,-500.0,0.00015723,2]
[419016067,1774755046130,-150.0,0.00015723,2]
[419016068,1774755046139,-500.0,0.00015723,2]
[419016069,1774755046148,-207.71494983,0.00015723,2]
[419016070,1774755046158,-500.0,0.00015723,2]
[419016071,1774755046167,-500.0,0.00015723,2]
[419016072,1774755046176,-500.0,0.00015723,2]
[419016073,1774755046186,-353.36335448,0.00015723,2]
[419016074,1774755046195,-635.43,0.00015725,2]
[419016075,1774755046204,-158.3155795,0.00015726,2]
[419016076,1774755046213,-500.0,0.00015726,2]
[419016077,1774755046222,-500.0,0.00015726,2]
[419016078,1774755046231,-500.0,0.00015726,2]
[419016079,1774755046240,-500.0,0.00015726,2]
[419016080,1774755046250,-500.0,0.00015726,2]
[419016081,1774755046259,-500.0,0.00015726,2]
[419016082,1774755046269,-500.0,0.00015726,2]
[419016083,1774755046278,-383.60720851,0.00015726,2]
[419016084,1774755046288,-500.0,0.00015726,2]
[419016085,1774755046297,-500.0,0.00015726,2]
[419016086,1774755046306,-500.0,0.00015726,2]
[419016087,1774755046316,-500.0,0.00015726,2]
[419016088,1774755046325,-500.0,0.00015726,2]
[419016089,1774755046334,-500.0,0.00015726,2]
[419016090,1774755046343,-500.0,0.00015726,2]
[419016091,1774755046352,-153.40286809,0.00015726,2]
[419016092,1774755046361,-150.0,0.00015726,2]
[419016093,1774755046371,-150.0,0.00015726,2]
[419016094,1774755046380,-150.0,0.00015726,2]
[419016095,1774755046389,-284.07676272,0.00015726,2]
[419016096,1774755046399,-1000.0,0.00015731,2]
[419016097,1774755046409,-1000.0,0.00015733,2]
[419016098,1774755046419,-1000.0,0.00015733,2]
[419016099,1774755046428,-205.01,0.00015733,2]
[419016100,1774755046438,-243.59117619,0.00015734,2]
[419016101,1774755046448,-1000.0,0.00015749,2]
[419016102,1774755046456,-500.0,0.00015749,2]
[419016103,1774755046467,-174.0,0.00015753,2]
[419016104,1774755046477,-1000.0,0.00015764,2]
[419016105,1774755046486,-1000.0,0.00015773,2]
[419016106,1774755046496,-1104.40507012,0.00015775,2]
[419016107,1774755046505,-2000.0,0.000158,2]
[419016108,1774755046515,-3500.0,0.000158,5]
[419016109,1774755046524,-200.0,0.000158,5]
[419016110,1774755046534,-1000.0,0.00015813,2]
[419016112,1774755046543,-1000.0,0.00015814,2]
[419016114,1774755046552,-1000.0,0.00015821,2]
[419016116,1774755046562,-1000.0,0.00015826,2]